Workbook

Sheet stempel tider
A1: Dato | B1: Helligdag | C1: Planlagt ind | D1: Planlagt ud | E1: Planlagt timer | F1: Planlagt Timer i 100 dele | G1: Bemærkning | H1: Stempel ind | I1: Stempel ud | J1: Faktiske timer | K1: Faktiske timer i 100 dele | L1: Ugens planlagt/ Ugens reelle | M1: Ugens planlagt/ Ugens reelle i 100 dele | N1: over/under tid i forhold til ugens Planlagt | O1: over/under tid i forhold til dagens Planlagt | P1: samlet over / Under timer | Q1: =SUM(O4:O184) -> 15.03333333 | R1: overført ferie | S1: Afviklet Ferie | T1: Rest ferie
R2: 25 | S2: =COUNTIF(G4:G400,"=Ferie") -> 5 | T2: =R2-S2 -> 20
A4: 2023-01-02 | B4: =helligdagsnavn(A4,0,0) ->  | C4: 09:45:00 | D4: 17:45:00 | E4: =SUM(D4-C4) -> 08:00:00 | F4: =SUM(E4*24) -> 8 | H4: 09:06:00 | I4: 17:47:00 | J4: =IF(G4="syg",E4,I4-H4) -> 08:41:00 | K4: =SUM(J4*24) -> 8.683333333 | L4: =SUM(E4:E10) -> 1.5 | M4: =SUM(L4)*24 -> 36 | O4: =IF(G4="Afspadsering",-F4,IF(K4=0,0,K4-F4)) -> 0.6833333333
A5: 2023-01-03 | B5: =helligdagsnavn(A5,0,0) ->  | C5: 09:45:00 | D5: 16:00:00 | E5: 06:15:00 | F5: =SUM(E5*24) -> 6.25 | H5: 09:37:00 | I5: 16:03:00 | J5: =IF(G5="syg",E5,I5-H5) -> 06:26:00 | K5: =SUM(J5*24) -> 6.433333333 | L5: =SUM(J4:J10) -> 1.642361111 | M5: =SUM(J4:J10)*24 -> 39.41666667 | N5: =SUM(M5-M4) -> 3.416666667 | O5: =IF(G5="Afspadsering",-F5,IF(K5=0,0,K5-F5)) -> 0.1833333333
A6: 2023-01-04 | B6: =helligdagsnavn(A6,0,0) ->  | C6: 10:00:00 | D6: 17:45:00 | E6: 07:45:00 | F6: 7.75 | H6: 09:02:00 | I6: 17:39:00 | J6: =IF(G6="syg",E6,I6-H6) -> 08:37:00 | K6: 8.616666667 | O6: 0.8666666667
A7: 1900-01-05 | B7: =helligdagsnavn(A7,0,0) ->  | C7: 09:45:00 | D7: 17:45:00 | E7: 08:00:00 | F7: 8 | H7: 09:06:00 | I7: 17:34:00 | J7: 08:28:00 | K7: 8.466666667 | O7: 0.4666666667
A8: 2023-01-06 | B8: =helligdagsnavn(A8,0,0) ->  | C8: 10:00:00 | D8: 16:00:00 | E8: 06:00:00 | F8: 6 | H8: 09:27:00 | I8: 16:40:00 | J8: 07:13:00 | K8: 7.216666667 | O8: 1.216666667
A9: 2023-01-07 | B9: =helligdagsnavn(A9,0,0) ->  | E9: 00:00:00 | F9: 0 | J9: 00:00:00 | K9: 0 | O9: 0
A10: 2023-01-08 | B10: =helligdagsnavn(A10,0,0) ->  | E10: 00:00:00 | F10: 0 | J10: 00:00:00 | K10: 0 | O10: 0
A11: 2023-01-09 | B11: =helligdagsnavn(A11,0,0) ->  | C11: 12:00:00 | D11: 17:45:00 | E11: 05:45:00 | F11: 5.75 | G11: SYG | J11: 05:45:00 | K11: 5.75 | L11: =SUM(E11:E17) -> 1.625 | M11: =SUM(L11)*24 -> 39 | O11: 0
A12: 2023-01-10 | B12: =helligdagsnavn(A12,0,0) ->  | C12: 09:45:00 | D12: 16:00:00 | E12: 06:15:00 | F12: 6.25 | G12: SYG | J12: 06:15:00 | K12: 6.25 | L12: =SUM(J11:J17) -> 1.696527778 | M12: =SUM(J11:J17)*24 -> 40.71666667 | N12: =SUM(M12-M11) -> 1.716666667 | O12: 0
A13: 2023-01-11 | B13: =helligdagsnavn(A13,0,0) ->  | C13: 10:00:00 | D13: 17:45:00 | E13: 07:45:00 | F13: 7.75 | G13: SYG | J13: 07:45:00 | K13: 7.75 | O13: 0
A14: 2023-01-12 | B14: =helligdagsnavn(A14,0,0) ->  | C14: 09:45:00 | D14: 17:45:00 | E14: 08:00:00 | F14: 8 | H14: 09:28:00 | I14: 17:45:00 | J14: 08:17:00 | K14: 8.283333333 | O14: 0.2833333333
A15: 2023-01-13 | B15: =helligdagsnavn(A15,0,0) ->  | C15: 09:45:00 | D15: 17:30:00 | E15: 07:45:00 | F15: 7.75 | H15: 09:24:00 | I15: 17:55:00 | J15: 08:31:00 | K15: 8.516666667 | O15: 0.7666666667
A16: 2023-01-14 | B16: =helligdagsnavn(A16,0,0) ->  | C16: 09:45:00 | D16: 13:15:00 | E16: 03:30:00 | F16: 3.5 | H16: 09:05:00 | I16: 13:15:00 | J16: 04:10:00 | K16: 4.166666667 | O16: 0.6666666667
A17: 2023-01-15 | B17: =helligdagsnavn(A17,0,0) ->  | E17: 00:00:00 | F17: 0 | J17: 00:00:00 | K17: 0 | O17: 0
A18: 2023-01-16 | B18: =helligdagsnavn(A18,0,0) ->  | C18: 09:45:00 | D18: 17:45:00 | E18: =SUM(D18-C18) -> 08:00:00 | F18: 8 | H18: 09:24:00 | I18: 17:40:00 | J18: 08:16:00 | K18: 8.266666667 | L18: =SUM(E18:E24) -> 1.5 | M18: =SUM(L18)*24 -> 36 | O18: 0.2666666667
A19: 2023-01-17 | B19: =helligdagsnavn(A19,0,0) ->  | C19: 09:45:00 | D19: 16:00:00 | E19: =SUM(D19-C19) -> 06:15:00 | F19: 6.25 | H19: 09:17:00 | I19: 16:00:00 | J19: 06:43:00 | K19: 6.716666667 | L19: =SUM(J18:J24) -> 1.548611111 | M19: =SUM(J18:J24)*24 -> 37.16666667 | N19: =SUM(M19-M18) -> 1.166666667 | O19: 0.4666666667
A20: 2023-01-18 | B20: =helligdagsnavn(A20,0,0) ->  | C20: 10:00:00 | D20: 17:45:00 | E20: 07:45:00 | F20: 7.75 | H20: 09:46:00 | I20: 17:34:00 | J20: 07:48:00 | K20: 7.8 | O20: 0.05
A21: 2023-01-19 | B21: =helligdagsnavn(A21,0,0) ->  | C21: 09:45:00 | D21: 17:45:00 | E21: 08:00:00 | F21: 8 | H21: 09:37:00 | I21: 17:35:00 | J21: 07:58:00 | K21: 7.966666667 | O21: -0.03333333333
A22: 2023-01-20 | B22: =helligdagsnavn(A22,0,0) ->  | C22: 10:00:00 | D22: 16:00:00 | E22: 06:00:00 | F22: 6 | H22: 09:40:00 | I22: 16:05:00 | J22: 06:25:00 | K22: 6.416666667 | O22: 0.4166666667
A23: 2023-01-21 | B23: =helligdagsnavn(A23,0,0) ->  | E23: 00:00:00 | F23: 0 | J23: 00:00:00 | K23: 0 | O23: 0
A24: 2023-01-22 | B24: =helligdagsnavn(A24,0,0) ->  | E24: 00:00:00 | F24: 0 | J24: 00:00:00 | K24: 0 | O24: 0
A25: 2023-01-23 | B25: =helligdagsnavn(A25,0,0) ->  | C25: 10:00:00 | D25: 16:00:00 | E25: =SUM(D25-C25) -> 06:00:00 | F25: 6 | H25: 09:36:00 | I25: 16:06:00 | J25: 06:30:00 | K25: 6.5 | L25: =SUM(E25:E31) -> 1.572916667 | M25: =SUM(L25)*24 -> 37.75 | O25: 0.5
A26: 2023-01-24 | B26: =helligdagsnavn(A26,0,0) ->  | C26: 09:45:00 | D26: 16:00:00 | E26: =SUM(D26-C26) -> 06:15:00 | F26: 6.25 | H26: 09:20:00 | I26: 16:00:00 | J26: 06:40:00 | K26: 6.666666667 | L26: =SUM(J25:J31) -> 1.647916667 | M26: =SUM(J25:J31)*24 -> 39.55 | N26: =SUM(M26-M25) -> 1.8 | O26: 0.4166666667
A27: 2023-01-25 | B27: =helligdagsnavn(A27,0,0) ->  | C27: 10:00:00 | D27: 17:45:00 | E27: 07:45:00 | F27: 7.75 | H27: 09:32:00 | I27: 17:45:00 | J27: 08:13:00 | K27: 8.216666667 | O27: 0.4666666667
A28: 2023-01-26 | B28: =helligdagsnavn(A28,0,0) ->  | C28: 09:45:00 | D28: 17:45:00 | E28: 08:00:00 | F28: 8 | H28: 09:38:00 | I28: 17:47:00 | J28: 08:09:00 | K28: 8.15 | O28: 0.15
A29: 2023-01-27 | B29: =helligdagsnavn(A29,0,0) ->  | C29: 09:45:00 | D29: 16:00:00 | E29: 06:15:00 | F29: 6.25 | H29: 09:37:00 | I29: 16:09:00 | J29: 06:32:00 | K29: 6.533333333 | O29: 0.2833333333
A30: 2023-01-28 | B30: =helligdagsnavn(A30,0,0) ->  | C30: 09:45:00 | D30: 13:15:00 | E30: 03:30:00 | F30: 3.5 | H30: 09:46:00 | I30: 13:15:00 | J30: 03:29:00 | K30: 3.483333333 | O30: -0.01666666667
A31: 2023-01-29 | B31: =helligdagsnavn(A31,0,0) ->  | E31: 00:00:00 | F31: 0 | J31: 00:00:00 | K31: 0 | O31: 0
A32: 2023-01-30 | B32: =helligdagsnavn(A32,0,0) ->  | C32: 09:45:00 | D32: 17:45:00 | E32: =SUM(D32-C32) -> 08:00:00 | F32: 8 | G32: SYG | J32: 08:00:00 | K32: 8 | L32: =SUM(E32:E38) -> 1.5 | M32: =SUM(L32)*24 -> 36 | O32: 0
A33: 2023-01-31 | B33: =helligdagsnavn(A33,0,0) ->  | C33: 09:45:00 | D33: 16:00:00 | E33: =SUM(D33-C33) -> 06:15:00 | F33: 6.25 | G33: SYG | J33: 06:15:00 | K33: 6.25 | L33: =SUM(J32:J38) -> 1.522916667 | M33: =SUM(J32:J38)*24 -> 36.55 | N33: =SUM(M33-M32) -> 0.55 | O33: 0
A34: 2023-02-01 | B34: =helligdagsnavn(A34,0,0) ->  | C34: 10:00:00 | D34: 17:45:00 | E34: 07:45:00 | F34: 7.75 | G34: SYG | J34: 07:45:00 | K34: 7.75 | O34: 0
A35: 2023-02-02 | B35: =helligdagsnavn(A35,0,0) ->  | C35: 09:45:00 | D35: 17:45:00 | E35: 08:00:00 | F35: 8 | H35: 09:35:00 | I35: 17:45:00 | J35: 08:10:00 | K35: 8.166666667 | O35: 0.1666666667
A36: 2023-02-03 | B36: =helligdagsnavn(A36,0,0) ->  | C36: 10:00:00 | D36: 16:00:00 | E36: 06:00:00 | F36: 6 | H36: 09:38:00 | I36: 16:01:00 | J36: 06:23:00 | K36: 6.383333333 | O36: 0.3833333333
A37: 2023-02-04 | B37: =helligdagsnavn(A37,0,0) ->  | E37: 00:00:00 | F37: 0 | J37: 00:00:00 | K37: 0 | O37: 0
A38: 2023-02-05 | B38: =helligdagsnavn(A38,0,0) ->  | E38: 00:00:00 | F38: 0 | J38: 00:00:00 | K38: 0 | O38: 0
A39: 2023-02-06 | B39: =helligdagsnavn(A39,0,0) ->  | C39: 12:00:00 | D39: 17:45:00 | E39: =SUM(D39-C39) -> 05:45:00 | F39: 5.75 | H39: 11:51:00 | I39: 17:33:00 | J39: 05:42:00 | K39: 5.7 | L39: =SUM(E39:E45) -> 1.479166667 | M39: =SUM(L39)*24 -> 35.5 | O39: -0.05
A40: 2023-02-07 | B40: =helligdagsnavn(A40,0,0) ->  | C40: 09:45:00 | D40: 16:00:00 | E40: =SUM(D40-C40) -> 06:15:00 | F40: 6.25 | H40: 09:26:00 | I40: 16:00:00 | J40: 06:34:00 | K40: 6.566666667 | L40: =SUM(J39:J45) -> 1.531944444 | M40: =SUM(J39:J45)*24 -> 36.76666667 | N40: =SUM(M40-M39) -> 1.266666667 | O40: 0.3166666667
A41: 2023-02-08 | B41: =helligdagsnavn(A41,0,0) ->  | C41: 10:00:00 | D41: 17:45:00 | E41: 07:45:00 | F41: 7.75 | H41: 09:46:00 | I41: 17:33:00 | J41: 07:47:00 | K41: 7.783333333 | O41: 0.03333333333
A42: 2023-02-09 | B42: =helligdagsnavn(A42,0,0) ->  | C42: 09:45:00 | D42: 17:45:00 | E42: 08:00:00 | F42: 8 | H42: 09:20:00 | I42: 17:43:00 | J42: 08:23:00 | K42: 8.383333333 | O42: 0.3833333333
A43: 2023-02-10 | B43: =helligdagsnavn(A43,0,0) ->  | C43: 09:45:00 | D43: 17:30:00 | E43: 07:45:00 | F43: 7.75 | H43: 09:17:00 | I43: 17:37:00 | J43: 08:20:00 | K43: 8.333333333 | O43: 0.5833333333
A44: 2023-02-11 | B44: =helligdagsnavn(A44,0,0) ->  | E44: 00:00:00 | F44: 0 | J44: 00:00:00 | K44: 0 | O44: 0
A45: 2023-02-12 | B45: =helligdagsnavn(A45,0,0) ->  | E45: 00:00:00 | F45: 0 | J45: 00:00:00 | K45: 0 | O45: 0
A46: 2023-02-13 | B46: =helligdagsnavn(A46,0,0) ->  | E46: =SUM(D46-C46) -> 00:00:00 | F46: 0 | G46: FERIE | J46: 00:00:00 | K46: 0 | L46: =SUM(E46:E52) -> 1.052083333 | M46: =SUM(L46)*24 -> 25.25 | O46: 0
A47: 2023-02-14 | B47: =helligdagsnavn(A47,0,0) ->  | E47: =SUM(D47-C47) -> 00:00:00 | F47: 0 | G47: FERIE | J47: 00:00:00 | K47: 0 | L47: =SUM(J46:J52) -> 0.90625 | M47: =SUM(J46:J52)*24 -> 21.75 | N47: =SUM(M47-M46) -> -3.5 | O47: 0
A48: 2023-02-15 | B48: =helligdagsnavn(A48,0,0) ->  | C48: 10:00:00 | D48: 17:45:00 | E48: 07:45:00 | F48: 7.75 | G48: SYG | J48: 07:45:00 | K48: 7.75 | O48: 0
A49: 2023-02-16 | B49: =helligdagsnavn(A49,0,0) ->  | C49: 09:45:00 | D49: 17:45:00 | E49: 08:00:00 | F49: 8 | G49: SYG | J49: 08:00:00 | K49: 8 | O49: 0
A50: 2023-02-17 | B50: =helligdagsnavn(A50,0,0) ->  | C50: 10:00:00 | D50: 16:00:00 | E50: 06:00:00 | F50: 6 | G50: SYG | J50: 06:00:00 | K50: 6 | O50: 0
A51: 2023-02-18 | B51: =helligdagsnavn(A51,0,0) ->  | C51: 09:45:00 | D51: 13:15:00 | E51: 03:30:00 | F51: 3.5 | J51: 00:00:00 | K51: 0 | O51: 0
A52: 2023-02-19 | B52: =helligdagsnavn(A52,0,0) ->  | E52: 00:00:00 | F52: 0 | J52: 00:00:00 | K52: 0 | O52: 0
A53: 2023-02-20 | B53: =helligdagsnavn(A53,0,0) ->  | C53: 10:00:00 | D53: 16:00:00 | E53: =SUM(D53-C53) -> 06:00:00 | F53: 6 | H53: 09:22:00 | I53: 16:11:00 | J53: 06:49:00 | K53: 6.816666667 | L53: =SUM(E53:E59) -> 1.635416667 | M53: =SUM(L53)*24 -> 39.25 | O53: 0.8166666667
A54: 2023-02-21 | B54: =helligdagsnavn(A54,0,0) ->  | C54: 09:45:00 | D54: 16:00:00 | E54: =SUM(D54-C54) -> 06:15:00 | F54: 6.25 | H54: 09:00:00 | I54: 16:02:00 | J54: 07:02:00 | K54: 7.033333333 | L54: =SUM(J53:J59) -> 1.802777778 | M54: =SUM(J53:J59)*24 -> 43.26666667 | N54: =SUM(M54-M53) -> 4.016666667 | O54: 0.7833333333
A55: 2023-02-22 | B55: =helligdagsnavn(A55,0,0) ->  | C55: 10:00:00 | D55: 17:45:00 | E55: 07:45:00 | F55: 7.75 | H55: 09:01:00 | I55: 17:43:00 | J55: 08:42:00 | K55: 8.7 | O55: 0.95
A56: 2023-02-23 | B56: =helligdagsnavn(A56,0,0) ->  | C56: 09:45:00 | D56: 17:45:00 | E56: 08:00:00 | F56: 8 | H56: 09:35:00 | I56: 17:42:00 | J56: 08:07:00 | K56: 8.116666667 | O56: 0.1166666667
A57: 2023-02-24 | B57: =helligdagsnavn(A57,0,0) ->  | C57: 09:45:00 | D57: 17:30:00 | E57: 07:45:00 | F57: 7.75 | H57: 09:12:00 | I57: 17:57:00 | J57: 08:45:00 | K57: 8.75 | O57: 1
A58: 2023-02-25 | B58: =helligdagsnavn(A58,0,0) ->  | C58: 09:45:00 | D58: 13:15:00 | E58: 03:30:00 | F58: 3.5 | H58: 09:23:00 | I58: 0.5513888889 | J58: 03:51:00 | K58: 3.85 | O58: 0.35
A59: 2023-02-26 | B59: =helligdagsnavn(A59,0,0) ->  | E59: 00:00:00 | F59: 0 | J59: 00:00:00 | K59: 0 | O59: 0
A60: 2023-02-27 | B60: =helligdagsnavn(A60,0,0) ->  | C60: 09:45:00 | D60: 17:45:00 | E60: =SUM(D60-C60) -> 08:00:00 | F60: 8 | H60: 09:26:00 | I60: 17:43:00 | J60: 08:17:00 | K60: 8.283333333 | L60: =SUM(E60:E66) -> 1.5 | M60: =SUM(L60)*24 -> 36 | O60: 0.2833333333
A61: 2023-02-28 | B61: =helligdagsnavn(A61,0,0) ->  | C61: 09:45:00 | D61: 16:00:00 | E61: =SUM(D61-C61) -> 06:15:00 | F61: 6.25 | H61: 09:18:00 | I61: 15:55:00 | J61: 06:37:00 | K61: 6.616666667 | L61: =SUM(J60:J66) -> 1.545833333 | M61: =SUM(J60:J66)*24 -> 37.1 | N61: =SUM(M61-M60) -> 1.1 | O61: 0.3666666667
A62: 2023-03-01 | B62: =helligdagsnavn(A62,0,0) ->  | C62: 10:00:00 | D62: 17:45:00 | E62: 07:45:00 | F62: 7.75 | H62: 09:53:00 | I62: 17:33:00 | J62: 07:40:00 | K62: 7.666666667 | O62: -0.08333333333
A63: 2023-03-02 | B63: =helligdagsnavn(A63,0,0) ->  | C63: 09:45:00 | D63: 17:45:00 | E63: 08:00:00 | F63: 8 | H63: 09:32:00 | I63: 17:37:00 | J63: 08:05:00 | K63: 8.083333333 | O63: 0.08333333333
A64: 2023-03-03 | B64: =helligdagsnavn(A64,0,0) ->  | C64: 10:00:00 | D64: 16:00:00 | E64: 06:00:00 | F64: 6 | H64: 09:35:00 | I64: 16:02:00 | J64: 06:27:00 | K64: 6.45 | O64: 0.45
A65: 2023-03-04 | B65: =helligdagsnavn(A65,0,0) ->  | E65: 00:00:00 | F65: 0 | J65: 00:00:00 | K65: 0 | O65: 0
A66: 2023-03-05 | B66: =helligdagsnavn(A66,0,0) ->  | E66: 00:00:00 | F66: 0 | J66: 00:00:00 | K66: 0 | O66: 0
A67: 2023-03-06 | B67: =helligdagsnavn(A67,0,0) ->  | C67: 10:00:00 | D67: 16:00:00 | E67: =SUM(D67-C67) -> 06:00:00 | F67: 6 | J67: 00:00:00 | K67: 0 | L67: =SUM(E67:E73) -> 1.489583333 | M67: =SUM(L67)*24 -> 35.75 | O67: 0
A68: 2023-03-07 | B68: =helligdagsnavn(A68,0,0) ->  | C68: 09:45:00 | D68: 16:00:00 | E68: =SUM(D68-C68) -> 06:15:00 | F68: 6.25 | J68: =IF(G68="syg",E68,I68-H68) -> 00:00:00 | K68: 0 | L68: =SUM(J67:J73) -> 0 | M68: =SUM(J67:J73)*24 -> 0 | N68: =SUM(M68-M67) -> -35.75 | O68: 0
A69: 2023-03-08 | B69: =helligdagsnavn(A69,0,0) ->  | C69: 10:00:00 | D69: 17:45:00 | E69: 07:45:00 | F69: =SUM(E69*24) -> 7.75 | J69: 00:00:00 | K69: =SUM(J69*24) -> 0 | O69: =IF(G69="Afspadsering",-F69,IF(K69=0,0,K69-F69)) -> 0
A70: 2023-03-09 | B70: =helligdagsnavn(A70,0,0) ->  | C70: 09:45:00 | D70: 17:45:00 | E70: 08:00:00 | F70: 8 | J70: 00:00:00 | K70: 0 | O70: 0
A71: 2023-03-10 | B71: =helligdagsnavn(A71,0,0) ->  | C71: 09:45:00 | D71: 17:30:00 | E71: 07:45:00 | F71: 7.75 | J71: 00:00:00 | K71: 0 | O71: 0
A72: 2023-03-11 | B72: =helligdagsnavn(A72,0,0) ->  | E72: 00:00:00 | F72: 0 | J72: 00:00:00 | K72: 0 | O72: 0
A73: 2023-03-12 | B73: =helligdagsnavn(A73,0,0) ->  | E73: 00:00:00 | F73: 0 | J73: 00:00:00 | K73: 0 | O73: 0
A74: 2023-03-13 | B74: =helligdagsnavn(A74,0,0) ->  | C74: 09:45:00 | D74: 17:45:00 | E74: =SUM(D74-C74) -> 08:00:00 | F74: 8 | J74: 00:00:00 | K74: 0 | L74: =SUM(E74:E80) -> 1.645833333 | M74: =SUM(L74)*24 -> 39.5 | O74: 0
A75: 2023-03-14 | B75: =helligdagsnavn(A75,0,0) ->  | C75: 09:45:00 | D75: 16:00:00 | E75: =SUM(D75-C75) -> 06:15:00 | F75: 6.25 | J75: 00:00:00 | K75: 0 | L75: =SUM(J74:J80) -> 0 | M75: =SUM(J74:J80)*24 -> 0 | N75: =SUM(M75-M74) -> -39.5 | O75: 0
A76: 2023-03-15 | B76: =helligdagsnavn(A76,0,0) ->  | C76: 10:00:00 | D76: 17:45:00 | E76: 07:45:00 | F76: 7.75 | J76: 00:00:00 | K76: 0 | O76: 0
A77: 2023-03-16 | B77: =helligdagsnavn(A77,0,0) ->  | C77: 09:45:00 | D77: 17:45:00 | E77: 08:00:00 | F77: 8 | J77: 00:00:00 | K77: 0 | O77: 0
A78: 2023-03-17 | B78: =helligdagsnavn(A78,0,0) ->  | C78: 10:00:00 | D78: 16:00:00 | E78: 06:00:00 | F78: 6 | J78: 00:00:00 | K78: 0 | O78: 0
A79: 2023-03-18 | B79: =helligdagsnavn(A79,0,0) ->  | C79: 09:45:00 | D79: 13:15:00 | E79: 03:30:00 | F79: 3.5 | J79: 00:00:00 | K79: 0 | O79: 0
A80: 2023-03-19 | B80: =helligdagsnavn(A80,0,0) ->  | E80: 00:00:00 | F80: 0 | J80: 00:00:00 | K80: 0 | O80: 0
A81: 2023-03-20 | B81: =helligdagsnavn(A81,0,0) ->  | C81: 12:00:00 | D81: 17:45:00 | E81: =SUM(D81-C81) -> 05:45:00 | F81: 5.75 | J81: 00:00:00 | K81: 0 | L81: =SUM(E81:E87) -> 1.625 | M81: =SUM(L81)*24 -> 39 | O81: 0
A82: 2023-03-21 | B82: =helligdagsnavn(A82,0,0) ->  | C82: 09:45:00 | D82: 16:00:00 | E82: =SUM(D82-C82) -> 06:15:00 | F82: 6.25 | J82: 00:00:00 | K82: 0 | L82: =SUM(J81:J87) -> 0 | M82: =SUM(J81:J87)*24 -> 0 | N82: =SUM(M82-M81) -> -39 | O82: 0
A83: 2023-03-22 | B83: =helligdagsnavn(A83,0,0) ->  | C83: 10:00:00 | D83: 17:45:00 | E83: 07:45:00 | F83: 7.75 | J83: 00:00:00 | K83: 0 | O83: 0
A84: 2023-03-23 | B84: =helligdagsnavn(A84,0,0) ->  | C84: 09:45:00 | D84: 17:45:00 | E84: 08:00:00 | F84: 8 | J84: 00:00:00 | K84: 0 | O84: 0
A85: 2023-03-24 | B85: =helligdagsnavn(A85,0,0) ->  | C85: 09:45:00 | D85: 17:30:00 | E85: 07:45:00 | F85: 7.75 | J85: 00:00:00 | K85: 0 | O85: 0
A86: 2023-03-25 | B86: =helligdagsnavn(A86,0,0) ->  | C86: 09:45:00 | D86: 13:15:00 | E86: 03:30:00 | F86: 3.5 | J86: 00:00:00 | K86: 0 | O86: 0
A87: 2023-03-26 | B87: =helligdagsnavn(A87,0,0) ->  | E87: 00:00:00 | F87: 0 | J87: 00:00:00 | K87: 0 | O87: 0
A88: 2023-03-27 | B88: =helligdagsnavn(A88,0,0) ->  | C88: 09:45:00 | D88: 17:45:00 | E88: =SUM(D88-C88) -> 08:00:00 | F88: 8 | J88: 00:00:00 | K88: 0 | L88: =SUM(E88:E94) -> 1.5 | M88: =SUM(L88)*24 -> 36 | O88: 0
A89: 2023-03-28 | B89: =helligdagsnavn(A89,0,0) ->  | C89: 09:45:00 | D89: 16:00:00 | E89: =SUM(D89-C89) -> 06:15:00 | F89: 6.25 | J89: 00:00:00 | K89: 0 | L89: =SUM(J88:J94) -> 0 | M89: =SUM(J88:J94)*24 -> 0 | N89: =SUM(M89-M88) -> -36 | O89: 0
A90: 2023-03-29 | B90: =helligdagsnavn(A90,0,0) ->  | C90: 10:00:00 | D90: 17:45:00 | E90: 07:45:00 | F90: 7.75 | J90: 00:00:00 | K90: 0 | O90: 0
A91: 2023-03-30 | B91: =helligdagsnavn(A91,0,0) ->  | C91: 09:45:00 | D91: 17:45:00 | E91: 08:00:00 | F91: 8 | J91: 00:00:00 | K91: 0 | O91: 0
A92: 2023-03-31 | B92: =helligdagsnavn(A92,0,0) ->  | C92: 10:00:00 | D92: 16:00:00 | E92: 06:00:00 | F92: 6 | J92: 00:00:00 | K92: 0 | O92: 0
A93: 2023-04-01 | B93: =helligdagsnavn(A93,0,0) ->  | E93: 00:00:00 | F93: 0 | J93: 00:00:00 | K93: 0 | O93: 0
A94: 2023-04-02 | B94: =helligdagsnavn(A94,0,0) ->  | E94: 00:00:00 | F94: 0 | J94: 00:00:00 | K94: 0 | O94: 0
A95: 2023-04-03 | B95: =helligdagsnavn(A95,0,0) ->  | E95: =SUM(D95-C95) -> 00:00:00 | F95: 0 | G95: FERIE | J95: 00:00:00 | K95: 0 | L95: =SUM(E95:E101) -> 0.1458333333 | M95: =SUM(L95)*24 -> 3.5 | O95: 0
A96: 2023-04-04 | B96: =helligdagsnavn(A96,0,0) ->  | E96: =SUM(D96-C96) -> 00:00:00 | F96: 0 | G96: FERIE | J96: 00:00:00 | K96: 0 | L96: =SUM(J95:J101) -> 0 | M96: =SUM(J95:J101)*24 -> 0 | N96: =SUM(M96-M95) -> -3.5 | O96: 0
A97: 2023-04-05 | B97: =helligdagsnavn(A97,0,0) ->  | E97: 00:00:00 | F97: 0 | G97: FERIE | J97: 00:00:00 | K97: 0 | O97: 0
A98: 2023-04-06 | B98: =helligdagsnavn(A98,0,0) -> Skærtorsdag | E98: 00:00:00 | F98: 0 | G98: SKÆRTORSDAG | J98: 00:00:00 | K98: 0 | O98: 0
A99: 2023-04-07 | B99: =helligdagsnavn(A99,0,0) -> Langfredag | E99: 00:00:00 | F99: 0 | G99: LANGFREDAG | J99: 00:00:00 | K99: 0 | O99: 0
A100: 2023-04-08 | B100: =helligdagsnavn(A100,0,0) ->  | C100: 09:45:00 | D100: 13:15:00 | E100: 03:30:00 | F100: 3.5 | J100: 00:00:00 | K100: 0 | O100: 0
A101: 2023-04-09 | B101: =helligdagsnavn(A101,0,0) -> Påskedag | E101: 00:00:00 | F101: 0 | J101: 00:00:00 | K101: 0 | O101: 0
A102: 2023-04-10 | B102: =helligdagsnavn(A102,0,0) -> 2. Påskedag | E102: =SUM(D102-C102) -> 00:00:00 | F102: 0 | G102: 2.PINSEDAG | J102: 00:00:00 | K102: 0 | L102: =SUM(E102:E108) -> 1.291666667 | M102: =SUM(L102)*24 -> 31 | O102: 0
A103: 2023-04-11 | B103: =helligdagsnavn(A103,0,0) ->  | C103: 09:45:00 | D103: 16:00:00 | E103: =SUM(D103-C103) -> 06:15:00 | F103: 6.25 | J103: 00:00:00 | K103: 0 | L103: =SUM(J102:J108) -> 0 | M103: =SUM(J102:J108)*24 -> 0 | N103: =SUM(M103-M102) -> -31 | O103: 0
A104: 2023-04-12 | B104: =helligdagsnavn(A104,0,0) ->  | C104: 10:00:00 | D104: 17:45:00 | E104: 07:45:00 | F104: 7.75 | J104: 00:00:00 | K104: 0 | O104: 0
A105: 2023-04-13 | B105: =helligdagsnavn(A105,0,0) ->  | C105: 09:45:00 | D105: 17:45:00 | E105: 08:00:00 | F105: 8 | J105: 00:00:00 | K105: 0 | O105: 0
A106: 2023-04-14 | B106: =helligdagsnavn(A106,0,0) ->  | C106: 10:00:00 | D106: 16:00:00 | E106: 06:00:00 | F106: 6 | J106: 00:00:00 | K106: 0 | O106: 0
A107: 2023-04-15 | B107: =helligdagsnavn(A107,0,0) ->  | C107: 10:00:00 | D107: 13:00:00 | E107: 03:00:00 | F107: 3 | J107: 00:00:00 | K107: 0 | O107: 0
A108: 2023-04-16 | B108: =helligdagsnavn(A108,0,0) ->  | E108: 00:00:00 | F108: 0 | J108: 00:00:00 | K108: 0 | O108: 0
A109: 2023-04-17 | B109: =helligdagsnavn(A109,0,0) ->  | C109: 10:00:00 | D109: 16:00:00 | E109: =SUM(D109-C109) -> 06:00:00 | F109: 6 | J109: 00:00:00 | K109: 0 | L109: =SUM(E109:E115) -> 1.489583333 | M109: =SUM(L109)*24 -> 35.75 | O109: 0
A110: 2023-04-18 | B110: =helligdagsnavn(A110,0,0) ->  | C110: 09:45:00 | D110: 16:00:00 | E110: =SUM(D110-C110) -> 06:15:00 | F110: 6.25 | J110: 00:00:00 | K110: 0 | L110: =SUM(J109:J115) -> 0 | M110: =SUM(J109:J115)*24 -> 0 | N110: =SUM(M110-M109) -> -35.75 | O110: 0
A111: 2023-04-19 | B111: =helligdagsnavn(A111,0,0) ->  | C111: 10:00:00 | D111: 17:45:00 | E111: 07:45:00 | F111: 7.75 | J111: 00:00:00 | K111: 0 | O111: 0
A112: 2023-04-20 | B112: =helligdagsnavn(A112,0,0) ->  | C112: 09:45:00 | D112: 17:45:00 | E112: 08:00:00 | F112: 8 | J112: 00:00:00 | K112: 0 | O112: 0
A113: 2023-04-21 | B113: =helligdagsnavn(A113,0,0) ->  | C113: 09:45:00 | D113: 17:30:00 | E113: 07:45:00 | F113: 7.75 | J113: 00:00:00 | K113: 0 | O113: 0
A114: 2023-04-22 | B114: =helligdagsnavn(A114,0,0) ->  | E114: 00:00:00 | F114: 0 | J114: 00:00:00 | K114: 0 | O114: 0
A115: 2023-04-23 | B115: =helligdagsnavn(A115,0,0) ->  | E115: 00:00:00 | F115: 0 | J115: 00:00:00 | K115: 0 | O115: 0
A116: 2023-04-24 | B116: =helligdagsnavn(A116,0,0) ->  | C116: 09:45:00 | D116: 17:45:00 | E116: =SUM(D116-C116) -> 08:00:00 | F116: 8 | J116: 00:00:00 | K116: 0 | L116: =SUM(E116:E122) -> 1.645833333 | M116: =SUM(L116)*24 -> 39.5 | O116: 0
A117: 2023-04-25 | B117: =helligdagsnavn(A117,0,0) ->  | C117: 09:45:00 | D117: 16:00:00 | E117: =SUM(D117-C117) -> 06:15:00 | F117: 6.25 | J117: 00:00:00 | K117: 0 | L117: =SUM(J116:J122) -> 0 | M117: =SUM(J116:J122)*24 -> 0 | N117: =SUM(M117-M116) -> -39.5 | O117: 0
A118: 2023-04-26 | B118: =helligdagsnavn(A118,0,0) ->  | C118: 10:00:00 | D118: 17:45:00 | E118: 07:45:00 | F118: 7.75 | J118: 00:00:00 | K118: 0 | O118: 0
A119: 2023-04-27 | B119: =helligdagsnavn(A119,0,0) ->  | C119: 09:45:00 | D119: 17:45:00 | E119: 08:00:00 | F119: 8 | J119: 00:00:00 | K119: 0 | O119: 0
A120: 2023-04-28 | B120: =helligdagsnavn(A120,0,0) ->  | C120: 10:00:00 | D120: 16:00:00 | E120: 06:00:00 | F120: 6 | J120: 00:00:00 | K120: 0 | O120: 0
A121: 2023-04-29 | B121: =helligdagsnavn(A121,0,0) ->  | C121: 09:45:00 | D121: 13:15:00 | E121: 03:30:00 | F121: 3.5 | J121: 00:00:00 | K121: 0 | O121: 0
A122: 2023-04-30 | B122: =helligdagsnavn(A122,0,0) ->  | E122: 00:00:00 | F122: 0 | J122: 00:00:00 | K122: 0 | O122: 0
A123: 2023-05-01 | B123: =helligdagsnavn(A123,0,0) ->  | C123: 12:00:00 | D123: 17:45:00 | E123: =SUM(D123-C123) -> 05:45:00 | F123: 5.75 | J123: 00:00:00 | K123: 0 | L123: =SUM(E123:E129) -> 1.15625 | M123: =SUM(L123)*24 -> 27.75 | O123: 0
A124: 2023-05-02 | B124: =helligdagsnavn(A124,0,0) ->  | C124: 09:45:00 | D124: 16:00:00 | E124: =SUM(D124-C124) -> 06:15:00 | F124: 6.25 | J124: 00:00:00 | K124: 0 | L124: =SUM(J123:J129) -> 0 | M124: =SUM(J123:J129)*24 -> 0 | N124: =SUM(M124-M123) -> -27.75 | O124: 0
A125: 2023-05-03 | B125: =helligdagsnavn(A125,0,0) ->  | C125: 10:00:00 | D125: 17:45:00 | E125: 07:45:00 | F125: 7.75 | J125: 00:00:00 | K125: 0 | O125: 0
A126: 2023-05-04 | B126: =helligdagsnavn(A126,0,0) ->  | C126: 09:45:00 | D126: 17:45:00 | E126: 08:00:00 | F126: 8 | J126: 00:00:00 | K126: 0 | O126: 0
A127: 2023-05-05 | B127: =helligdagsnavn(A127,0,0) -> Store Bededag | E127: 00:00:00 | F127: 0 | G127: ST.BEDEDAG | J127: 00:00:00 | K127: 0 | O127: 0
A128: 2023-05-06 | B128: =helligdagsnavn(A128,0,0) ->  | E128: 00:00:00 | F128: 0 | J128: 00:00:00 | K128: 0 | O128: 0
A129: 2023-05-07 | B129: =helligdagsnavn(A129,0,0) ->  | E129: 00:00:00 | F129: 0 | J129: =IF(G129="syg",E129,I129-H129) -> 00:00:00 | K129: 0 | O129: 0
A130: 2023-05-08 | B130: =helligdagsnavn(A130,0,0) ->  | C130: 09:45:00 | D130: 17:45:00 | E130: 08:00:00 | F130: 8 | J130: 00:00:00 | K130: 0 | L130: =SUM(E130:E136) -> 1.645833333 | M130: =SUM(L130)*24 -> 39.5 | O130: 0
A131: 2023-05-09 | B131: =helligdagsnavn(A131,0,0) ->  | C131: 09:45:00 | D131: 16:00:00 | E131: 06:15:00 | F131: 6.25 | J131: 00:00:00 | K131: 0 | L131: =SUM(J130:J136) -> 0 | M131: =SUM(J130:J136)*24 -> 0 | N131: =SUM(M131-M130) -> -39.5 | O131: 0
A132: 2023-05-10 | B132: =helligdagsnavn(A132,0,0) ->  | C132: 10:00:00 | D132: 17:45:00 | E132: 07:45:00 | F132: 7.75 | J132: 00:00:00 | K132: 0 | O132: 0
A133: 2023-05-11 | B133: =helligdagsnavn(A133,0,0) ->  | C133: 09:45:00 | D133: 17:45:00 | E133: 08:00:00 | F133: =SUM(E133*24) -> 8 | J133: 00:00:00 | K133: =SUM(J133*24) -> 0 | O133: =IF(G133="Afspadsering",-F133,IF(K133=0,0,K133-F133)) -> 0
A134: 2023-05-12 | B134: =helligdagsnavn(A134,0,0) ->  | C134: 10:00:00 | D134: 16:00:00 | E134: 06:00:00 | F134: 6 | J134: 00:00:00 | K134: 0 | O134: 0
A135: 2023-05-13 | B135: =helligdagsnavn(A135,0,0) ->  | C135: 09:45:00 | D135: 13:15:00 | E135: 03:30:00 | F135: 3.5 | J135: 00:00:00 | K135: 0 | O135: 0
A136: 2023-05-14 | B136: =helligdagsnavn(A136,0,0) ->  | E136: 00:00:00 | F136: 0 | J136: 00:00:00 | K136: 0 | O136: 0
A137: 2023-05-15 | B137: =helligdagsnavn(A137,0,0) ->  | C137: 10:00:00 | D137: 16:00:00 | E137: 06:00:00 | F137: 6 | J137: 00:00:00 | K137: 0 | L137: =SUM(E137:E143) -> 1.15625 | M137: =SUM(L137)*24 -> 27.75 | O137: 0
A138: 2023-05-16 | B138: =helligdagsnavn(A138,0,0) ->  | C138: 09:45:00 | D138: 16:00:00 | E138: 06:15:00 | F138: 6.25 | J138: 00:00:00 | K138: 0 | L138: =SUM(J137:J143) -> 0 | M138: =SUM(J137:J143)*24 -> 0 | N138: =SUM(M138-M137) -> -27.75 | O138: 0
A139: 2023-05-17 | B139: =helligdagsnavn(A139,0,0) ->  | C139: 10:00:00 | D139: 17:45:00 | E139: 07:45:00 | F139: 7.75 | J139: 00:00:00 | K139: 0 | O139: 0
A140: 2023-05-18 | B140: =helligdagsnavn(A140,0,0) -> Kristi Himmelfartsdag | E140: 00:00:00 | F140: 0 | G140: KRISTI HIMMEL | J140: 00:00:00 | K140: 0 | O140: 0
A141: 2023-05-19 | B141: =helligdagsnavn(A141,0,0) ->  | C141: 09:45:00 | D141: 17:30:00 | E141: 07:45:00 | F141: 7.75 | J141: 00:00:00 | K141: 0 | O141: 0
A142: 2023-05-20 | B142: =helligdagsnavn(A142,0,0) ->  | E142: 00:00:00 | F142: 0 | J142: 00:00:00 | K142: 0 | O142: 0
A143: 2023-05-21 | B143: =helligdagsnavn(A143,0,0) ->  | E143: 00:00:00 | F143: 0 | J143: 00:00:00 | K143: 0 | O143: 0
A144: 2023-05-22 | B144: =helligdagsnavn(A144,0,0) ->  | C144: 09:45:00 | D144: 17:45:00 | E144: 08:00:00 | F144: 8 | J144: 00:00:00 | K144: 0 | L144: =SUM(E144:E150) -> 1.625 | M144: =SUM(L144)*24 -> 39 | O144: 0
A145: 2023-05-23 | B145: =helligdagsnavn(A145,0,0) ->  | C145: 09:45:00 | D145: 16:00:00 | E145: 06:15:00 | F145: 6.25 | J145: 00:00:00 | K145: 0 | L145: =SUM(J144:J150) -> 0 | M145: =SUM(J144:J150)*24 -> 0 | N145: =SUM(M145-M144) -> -39 | O145: 0
A146: 2023-05-24 | B146: =helligdagsnavn(A146,0,0) ->  | C146: 10:00:00 | D146: 17:45:00 | E146: 07:45:00 | F146: 7.75 | J146: 00:00:00 | K146: 0 | O146: 0
A147: 2023-05-25 | B147: =helligdagsnavn(A147,0,0) ->  | C147: 09:45:00 | D147: 17:45:00 | E147: 08:00:00 | F147: 8 | J147: 00:00:00 | K147: 0 | O147: 0
A148: 2023-05-26 | B148: =helligdagsnavn(A148,0,0) ->  | C148: 10:00:00 | D148: 16:00:00 | E148: 06:00:00 | F148: 6 | J148: 00:00:00 | K148: 0 | O148: 0
A149: 2023-05-27 | B149: =helligdagsnavn(A149,0,0) ->  | C149: 10:00:00 | D149: 13:00:00 | E149: 03:00:00 | F149: 3 | J149: 00:00:00 | K149: 0 | O149: 0
A150: 2023-05-28 | B150: =helligdagsnavn(A150,0,0) -> Pinsedag | E150: 00:00:00 | F150: 0 | J150: 00:00:00 | K150: 0 | O150: 0
A151: 2023-05-29 | B151: =helligdagsnavn(A151,0,0) -> 2. Pinsedag | E151: 00:00:00 | F151: 0 | G151: 2.PINSEDAG | J151: 00:00:00 | K151: 0 | L151: =SUM(E151:E157) -> 1.239583333 | M151: =SUM(L151)*24 -> 29.75 | O151: 0
A152: 2023-05-30 | B152: =helligdagsnavn(A152,0,0) ->  | C152: 09:45:00 | D152: 16:00:00 | E152: 06:15:00 | F152: 6.25 | J152: 00:00:00 | K152: 0 | L152: =SUM(J151:J157) -> 0 | M152: =SUM(J151:J157)*24 -> 0 | N152: =SUM(M152-M151) -> -29.75 | O152: 0
A153: 2023-05-31 | B153: =helligdagsnavn(A153,0,0) ->  | C153: 10:00:00 | D153: 17:45:00 | E153: 07:45:00 | F153: 7.75 | J153: 00:00:00 | K153: 0 | O153: 0
A154: 2023-06-01 | B154: =helligdagsnavn(A154,0,0) ->  | C154: 09:45:00 | D154: 17:45:00 | E154: 08:00:00 | F154: 8 | J154: 00:00:00 | K154: 0 | O154: 0
A155: 2023-06-02 | B155: =helligdagsnavn(A155,0,0) ->  | C155: 09:45:00 | D155: 17:30:00 | E155: 07:45:00 | F155: 7.75 | J155: 00:00:00 | K155: 0 | O155: 0
A156: 2023-06-03 | B156: =helligdagsnavn(A156,0,0) ->  | E156: 00:00:00 | F156: 0 | J156: 00:00:00 | K156: 0 | O156: 0
A157: 2023-06-04 | B157: =helligdagsnavn(A157,0,0) ->  | E157: 00:00:00 | F157: 0 | J157: 00:00:00 | K157: 0 | O157: 0
A158: 2023-06-05 | B158: =helligdagsnavn(A158,0,0) -> Grundlovsdag | C158: 09:45:00 | D158: 17:45:00 | E158: 08:00:00 | F158: 8 | J158: 00:00:00 | K158: 0 | L158: =SUM(E158:E164) -> 1.645833333 | M158: =SUM(L158)*24 -> 39.5 | O158: 0
A159: 2023-06-06 | B159: =helligdagsnavn(A159,0,0) ->  | C159: 09:45:00 | D159: 16:00:00 | E159: 06:15:00 | F159: 6.25 | J159: 00:00:00 | K159: 0 | L159: =SUM(J158:J164) -> 0 | M159: =SUM(J158:J164)*24 -> 0 | N159: =SUM(M159-M158) -> -39.5 | O159: 0
A160: 2023-06-07 | B160: =helligdagsnavn(A160,0,0) ->  | C160: 10:00:00 | D160: 17:45:00 | E160: 07:45:00 | F160: 7.75 | J160: 00:00:00 | K160: 0 | O160: 0
A161: 2023-06-08 | B161: =helligdagsnavn(A161,0,0) ->  | C161: 09:45:00 | D161: 17:45:00 | E161: 08:00:00 | F161: 8 | J161: 00:00:00 | K161: 0 | O161: 0
A162: 2023-06-09 | B162: =helligdagsnavn(A162,0,0) ->  | C162: 10:00:00 | D162: 16:00:00 | E162: 06:00:00 | F162: 6 | J162: 00:00:00 | K162: 0 | O162: 0
A163: 2023-06-10 | B163: =helligdagsnavn(A163,0,0) ->  | C163: 09:45:00 | D163: 13:15:00 | E163: 03:30:00 | F163: 3.5 | J163: 00:00:00 | K163: 0 | O163: 0
A164: 2023-06-11 | B164: =helligdagsnavn(A164,0,0) ->  | E164: 00:00:00 | F164: 0 | J164: 00:00:00 | K164: 0 | O164: 0
A165: 2023-06-12 | B165: =helligdagsnavn(A165,0,0) ->  | C165: 12:00:00 | D165: 17:45:00 | E165: 05:45:00 | F165: 5.75 | J165: 00:00:00 | K165: 0 | L165: =SUM(E165:E171) -> 1.479166667 | M165: =SUM(L165)*24 -> 35.5 | O165: 0
A166: 2023-06-13 | B166: =helligdagsnavn(A166,0,0) ->  | C166: 09:45:00 | D166: 16:00:00 | E166: 06:15:00 | F166: 6.25 | J166: 00:00:00 | K166: 0 | L166: =SUM(J165:J171) -> 0 | M166: =SUM(J165:J171)*24 -> 0 | N166: =SUM(M166-M165) -> -35.5 | O166: 0
A167: 2023-06-14 | B167: =helligdagsnavn(A167,0,0) ->  | C167: 10:00:00 | D167: 17:45:00 | E167: 07:45:00 | F167: 7.75 | J167: 00:00:00 | K167: 0 | O167: 0
A168: 2023-06-15 | B168: =helligdagsnavn(A168,0,0) ->  | C168: 09:45:00 | D168: 17:45:00 | E168: 08:00:00 | F168: 8 | J168: 00:00:00 | K168: 0 | O168: 0
A169: 2023-06-16 | B169: =helligdagsnavn(A169,0,0) ->  | C169: 09:45:00 | D169: 17:30:00 | E169: 07:45:00 | F169: 7.75 | J169: 00:00:00 | K169: 0 | O169: 0
A170: 2023-06-17 | B170: =helligdagsnavn(A170,0,0) ->  | E170: 00:00:00 | F170: 0 | J170: 00:00:00 | K170: 0 | O170: 0
A171: 2023-06-18 | B171: =helligdagsnavn(A171,0,0) ->  | E171: 00:00:00 | F171: 0 | J171: 00:00:00 | K171: 0 | O171: 0
A172: 2023-06-19 | B172: =helligdagsnavn(A172,0,0) ->  | C172: 09:45:00 | D172: 17:45:00 | E172: 08:00:00 | F172: 8 | J172: 00:00:00 | K172: 0 | L172: =SUM(E172:E178) -> 1.645833333 | M172: =SUM(L172)*24 -> 39.5 | O172: 0
A173: 2023-06-20 | B173: =helligdagsnavn(A173,0,0) ->  | C173: 09:45:00 | D173: 16:00:00 | E173: 06:15:00 | F173: 6.25 | J173: 00:00:00 | K173: 0 | L173: =SUM(J172:J178) -> 0 | M173: =SUM(J172:J178)*24 -> 0 | N173: =SUM(M173-M172) -> -39.5 | O173: 0
A174: 2023-06-21 | B174: =helligdagsnavn(A174,0,0) ->  | C174: 10:00:00 | D174: 17:45:00 | E174: 07:45:00 | F174: 7.75 | J174: 00:00:00 | K174: 0 | O174: 0
A175: 2023-06-22 | B175: =helligdagsnavn(A175,0,0) ->  | C175: 09:45:00 | D175: 17:45:00 | E175: 08:00:00 | F175: 8 | J175: 00:00:00 | K175: 0 | O175: 0
A176: 2023-06-23 | B176: =helligdagsnavn(A176,0,0) ->  | C176: 10:00:00 | D176: 16:00:00 | E176: 06:00:00 | F176: 6 | J176: 00:00:00 | K176: 0 | O176: 0
A177: 2023-06-24 | B177: =helligdagsnavn(A177,0,0) ->  | C177: 09:45:00 | D177: 13:15:00 | E177: 03:30:00 | F177: 3.5 | J177: 00:00:00 | K177: 0 | O177: 0
A178: 2023-06-25 | B178: =helligdagsnavn(A178,0,0) ->  | E178: 00:00:00 | F178: 0 | J178: 00:00:00 | K178: 0 | O178: 0
A179: 2023-06-26 | B179: =helligdagsnavn(A179,0,0) ->  | E179: 00:00:00 | F179: 0 | J179: 00:00:00 | K179: 0 | L179: =SUM(E179:E185) -> 0 | M179: =SUM(L179)*24 -> 0 | O179: 0
A180: 2023-06-27 | B180: =helligdagsnavn(A180,0,0) ->  | E180: 00:00:00 | F180: 0 | L180: =SUM(J179:J185) -> 0 | M180: =SUM(J179:J185)*24 -> 0 | N180: =SUM(M180-M179) -> 0 | O180: 0
A181: 2023-06-28 | B181: =helligdagsnavn(A181,0,0) ->  | E181: 00:00:00 | F181: 0 | O181: 0
A182: 2023-06-29 | B182: =helligdagsnavn(A182,0,0) ->  | E182: 00:00:00 | F182: 0 | O182: 0
A183: 2023-06-30 | B183: =helligdagsnavn(A183,0,0) ->  | E183: 00:00:00 | F183: 0 | O183: 0
A184: 2023-07-01 | B184: =helligdagsnavn(A184,0,0) ->  | E184: 00:00:00 | F184: 0 | O184: 0
A185: 2023-07-02 | B185: =helligdagsnavn(A185,0,0) ->  | E185: 00:00:00 | F185: 0 | O185: 0
A186: 2023-07-03 | B186: =helligdagsnavn(A186,0,0) ->  | E186: 00:00:00 | F186: 0 | L186: =SUM(E186:E192) -> 0 | M186: =SUM(L186)*24 -> 0 | O186: 0
A187: 2023-07-04 | B187: =helligdagsnavn(A187,0,0) ->  | E187: 00:00:00 | F187: 0 | L187: =SUM(J186:J192) -> 0 | M187: =SUM(J186:J192)*24 -> 0 | N187: =SUM(M187-M186) -> 0 | O187: 0
A188: 2023-07-05 | B188: =helligdagsnavn(A188,0,0) ->  | E188: =SUM(D188-C188) -> 00:00:00 | F188: 0 | O188: 0
A189: 2023-07-06 | B189: =helligdagsnavn(A189,0,0) ->  | E189: 00:00:00 | F189: 0 | O189: 0
A190: 2023-07-07 | B190: =helligdagsnavn(A190,0,0) ->  | E190: 00:00:00 | F190: 0 | O190: 0
A191: 2023-07-08 | B191: =helligdagsnavn(A191,0,0) ->  | E191: 00:00:00 | F191: 0 | O191: 0
A192: 2023-07-09 | B192: =helligdagsnavn(A192,0,0) ->  | E192: 00:00:00 | F192: 0 | O192: 0
A193: 2023-07-10 | B193: =helligdagsnavn(A193,0,0) ->  | E193: 00:00:00 | F193: 0 | L193: =SUM(E193:E199) -> 0 | M193: =SUM(L193)*24 -> 0 | O193: 0
A194: 2023-07-11 | B194: =helligdagsnavn(A194,0,0) ->  | E194: 00:00:00 | F194: 0 | L194: =SUM(J193:J199) -> 0 | M194: =SUM(J193:J199)*24 -> 0 | N194: =SUM(M194-M193) -> 0 | O194: 0
A195: 2023-07-12 | B195: =helligdagsnavn(A195,0,0) ->  | E195: 00:00:00 | F195: 0 | O195: 0
A196: 2023-07-13 | B196: =helligdagsnavn(A196,0,0) ->  | E196: 00:00:00 | F196: 0 | O196: 0
A197: 2023-07-14 | B197: =helligdagsnavn(A197,0,0) ->  | E197: 00:00:00 | F197: =SUM(E197*24) -> 0 | O197: =IF(G197="Afspadsering",-F197,IF(K197=0,0,K197-F197)) -> 0
A198: 2023-07-15 | B198: =helligdagsnavn(A198,0,0) ->  | E198: 00:00:00 | F198: 0 | O198: 0
A199: 2023-07-16 | B199: =helligdagsnavn(A199,0,0) ->  | E199: 00:00:00 | F199: 0 | O199: 0
A200: 2023-07-17 | B200: =helligdagsnavn(A200,0,0) ->  | E200: 00:00:00 | F200: 0 | L200: =SUM(E200:E206) -> 0 | M200: =SUM(L200)*24 -> 0 | O200: 0
A201: 2023-07-18 | B201: =helligdagsnavn(A201,0,0) ->  | E201: 00:00:00 | F201: 0 | L201: =SUM(J200:J206) -> 0 | M201: =SUM(J200:J206)*24 -> 0 | N201: =SUM(M201-M200) -> 0 | O201: 0
... 197 more rows

Sheet måndes regskab
B1: Jan | C1: Feb | D1: Mar | E1: Apr | F1: Maj | G1: Jun | H1: Jul | I1: Aug | J1: Sep | K1: Okt | L1: Nov | M1: Dec
A2: Planlagt timer | B2: =SUM('stempel tider'!F4:F33) -> 163 | C2: =SUM('stempel tider'!F34:F61) -> 136 | D2: =SUM('stempel tider'!F62:F92) -> 172 | E2: =SUM('stempel tider'!F93:F122) -> 109.75 | F2: =SUM('stempel tider'!F123:F153) -> 148 | G2: =SUM('stempel tider'!F154:F183) -> 130.25
A3: Afholdt timer | B3: =SUM('stempel tider'!K4:K33) -> 171.1 | C3: =SUM('stempel tider'!K34:K61) -> 138.9833333 | D3: =SUM('stempel tider'!K62:K92) -> 22.2 | E3: =SUM('stempel tider'!K93:K122) -> 0 | F3: =SUM('stempel tider'!K123:K153) -> 0 | G3: =SUM('stempel tider'!K154:K183) -> 0 | O3: =SUM(B3:N3) -> 332.2833333
A5: over / underskud | B5: =SUM(B3-B2) -> 8.1 | C5: 2.983333333 | D5: -149.8 | E5: -109.75 | F5: -148 | G5: -130.25

Sheet T
A1: AFSPADSERING
A2: FERIE
A3: SYG
A5: SKÆRTORSDAG
A6: LANGFREDAG
A7: 2.PÅSKEDAG
A8: ST.BEDEDAG
A9: KRISTI HIMMEL
A10: 2.PINSEDAG
A11: JULE AFTEN
A12: JULEDAG
A13: 2.JULEDAG
A14: NYTÅRS AFTEN
A15: 1.NYTÅRSDAG

Sheet Ark1
